Workbook

Sheet Sheet1
A1: 暦 年 ・ 年 度 別 空 港 管 理 状 況 調 書
A2: 空港名 ： | B2: 成田国際 （会社管理）
A3: 項目 | C3: 着 陸 回 数 （回） | E3: 乗 降 客 数 （人） | M3: 航空燃料供給量 （ＫＬ）
B4: 国際線 | C4: 国内線 | D4: 計 | F4: 国 際 線 | J4: 国 内 線 | L4: 合 計 | M4: ジェット燃料 | N4: その他燃料 | O4: 合計
A5: 年別 | E5: 乗 客 | F5: 降 客 | G5: 通過客 | H5: 小 計 | I5: 乗 客 | J5: 降 客 | K5: 小 計
A7: 20 | B7: 89910 | C7: 7311 | D7: =SUM(B7:C7) -> 97221 | E7: 13221477 | F7: 13068229 | G7: 2998500 | H7: =SUM(E7:G7) -> 29288206 | I7: 572029 | J7: 570892 | K7: =SUM(I7:J7) -> 1142921 | L7: =H7+K7 -> 30431127 | M7: 5370653 | N7: 0 | O7: =SUM(M7:N7) -> 5370653
A8: 21 | B8: 86419 | C8: 7781 | D8: 94200 | E8: 12260355 | F8: 12157747 | G8: 3221705 | H8: 27639807 | I8: 609157 | J8: 631503 | K8: 1240660 | L8: 28880467 | M8: 4832205 | N8: 0 | O8: 4832205
A9: 22 | B9: 86258 | C9: 10065 | D9: 96323 | E9: 13087638 | F9: 13026418 | G9: 3013562 | H9: 29127618 | I9: 800961 | J9: 851423 | K9: 1652384 | L9: 30780002 | M9: 4789778 | N9: 0 | O9: 4789778
A10: 23 | B10: 81244 | C10: 11135 | D10: 92379 | E10: 10535609 | F10: 10481180 | G10: 2635887 | H10: 23652676 | I10: 847642 | J10: 877120 | K10: 1724762 | L10: 25377438 | M10: 4197290 | N10: 0 | O10: 4197290
A11: 24 | B11: 86677 | C11: 18582 | D11: 105259 | E11: 11960505 | F11: 11952789 | G11: 2852766 | H11: 26766060 | I11: 1592417 | J11: 1643848 | K11: 3236265 | L11: 30002325 | M11: 4628179 | N11: 0 | O11: 4628179
A12: 25 | B12: 87991 | C12: 23703 | D12: 111694 | E12: 12394023 | F12: 12413746 | G12: 2832464 | H12: 27640233 | I12: 2360226 | J12: 2464980 | K12: 4825206 | L12: 32465439 | M12: 4771485 | N12: 0 | O12: 4771485
A13: 26 | B13: 89299 | C13: 26222 | D13: 115521 | E13: 12098300 | F13: 12148567 | G13: 2676461 | H13: 26923328 | I13: 2914555 | J13: 3029015 | K13: 5943570 | L13: 32866898 | M13: 4692839 | N13: 0 | O13: 4692839
A14: 27 | B14: 90707 | C14: 26043 | D14: =SUM(B14:C14) -> 116750 | E14: 12710355 | F14: 12791426 | G14: 2528697 | H14: =SUM(E14:G14) -> 28030478 | I14: 3325095 | J14: 3395648 | K14: =SUM(I14:J14) -> 6720743 | L14: =H14+K14 -> 34751221 | M14: 4563902 | N14: 0 | O14: 4563902
A15: 28 | B15: 96275 | C15: 26101 | D15: =SUM(B15:C15) -> 122376 | E15: 13515299 | F15: 13629812 | G15: 2429158 | H15: =SUM(E15:G15) -> 29574269 | I15: 3468273 | J15: 3536303 | K15: =SUM(I15:J15) -> 7004576 | L15: =H15+K15 -> 36578845 | M15: 4570218 | N15: 0 | O15: =SUM(M15:N15) -> 4570218
A16: 29 | B16: 98801 | C16: 27669 | D16: =SUM(B16:C16) -> 126470 | E16: 14500368 | F16: 14582634 | G16: 2008307 | H16: =SUM(E16:G16) -> 31091309 | I16: 3730869 | J16: 3809380 | K16: =SUM(I16:J16) -> 7540249 | L16: =H16+K16 -> 38631558 | M16: 4475255 | N16: 0 | O16: =SUM(M16:N16) -> 4475255
A19: 20 | B19: 88845 | C19: 7372 | D19: =SUM(B19:C19) -> 96217 | E19: 12822552 | F19: 12640987 | G19: 2974722 | H19: =SUM(E19:G19) -> 28438261 | I19: 562442 | J19: 571695 | K19: =SUM(I19:J19) -> 1134137 | L19: =H19+K19 -> 29572398 | M19: 5210556 | N19: 0 | O19: =SUM(M19:N19) -> 5210556
A20: 21 | B20: 85897 | C20: 8194 | D20: 94091 | E20: 12457413 | F20: 12375532 | G20: 3289594 | H20: 28122539 | I20: 651421 | J20: 677526 | K20: 1328947 | L20: 29451486 | M20: 4783460 | N20: 0 | O20: 4783460
A21: 22 | B21: 85846 | C21: 10488 | D21: 96334 | E21: 12668999 | F21: 12392958 | G21: 2855526 | H21: 27917483 | I21: 819838 | J21: 871652 | K21: 1691490 | L21: 29608973 | M21: 4677404 | N21: 0 | O21: 4677404
A22: 23 | B22: 82119 | C22: 12167 | D22: 94286 | E22: 10682880 | F22: 10854697 | G22: 2659931 | H22: 24197508 | I22: 949129 | J22: 976943 | K22: 1926072 | L22: 26123580 | M22: 4257201 | N22: 0 | O22: 4257201
A23: 24 | B23: 86619 | C23: 20379 | D23: 106998 | E23: 11979987 | F23: 12015079 | G23: 2886462 | H23: 26881528 | I23: 1817448 | J23: 1903206 | K23: 3720654 | L23: 30602182 | M23: 4673943 | N23: 0 | O23: 4673943
A24: 25 | B24: 89178 | C24: 24739 | D24: 113917 | E24: 12539539 | F24: 12566224 | G24: 2840374 | H24: 27946137 | I24: 2535659 | J24: 2643479 | K24: 5179138 | L24: 33125275 | M24: 4814666 | N24: 0 | O24: 4814666
A25: 26 | B25: 88969 | C25: 25852 | D25: 114821 | E25: 11998679 | F25: 12061755 | G25: 2596721 | H25: 26657155 | I25: 2950824 | J25: 3051732 | K25: 6002556 | L25: 32659711 | M25: 4616954 | N25: 0 | O25: 4616954
A26: 27 | B26: 92048 | C26: 26141 | D26: 118189 | E26: 12935260 | F26: 12997289 | G26: 2537839 | H26: 28470388 | I26: 3406949 | J26: 3478649 | K26: 6885598 | L26: 35355986 | M26: 4573250 | N26: 0 | O26: 4573250
A27: 28 | B27: 96907 | C27: 26643 | D27: =SUM(B27:C27) -> 123550 | E27: 13802585 | F27: 13911116 | G27: 2325753 | H27: =SUM(E27:G27) -> 30039454 | I27: 3573335 | J27: 3637182 | K27: =SUM(I27:J27) -> 7210517 | L27: =H27+K27 -> 37249971 | M27: 4548549 | N27: 0 | O27: =SUM(M27:N27) -> 4548549
A28: 29 | B28: 99503 | C28: 27371 | D28: =SUM(B28:C28) -> 126874 | E28: 14732575 | F28: 14839079 | G28: 1930013 | H28: =SUM(E28:G28) -> 31501667 | I28: 3693081 | J28: 3767594 | K28: =SUM(I28:J28) -> 7460675 | L28: =H28+K28 -> 38962342 | M28: 4467715 | N28: 0 | O28: =SUM(M28:N28) -> 4467715
A32: 項目 | E32: 貨 物 取 扱 量 （トン） | L32: 郵 便 取 扱 量 （Ｋｇ）
C33: 国 際 線 | F33: 国 内 線 | H33: 合計 | J33: 国 際 線 | M33: 国 内 線 | O33: 合 計
A34: 年別 | B34: 積 | C34: 卸 | D34: 小 計 | E34: 積 | F34: 卸 | G34: 小 計 | I34: 積 | J34: 卸 | K34: 小 計 | L34: 積 | M34: 卸 | N34: 小 計
A36: 20 | B36: 999449 | C36: 1059184 | D36: =SUM(B36:C36) -> 2058633 | E36: 2072 | F36: 2383 | G36: =SUM(E36:F36) -> 4455 | H36: =G36+D36 -> 2063088 | I36: 12361290 | J36: 22355103 | K36: =SUM(I36:J36) -> 34716393 | L36: 1864602 | M36: 777918 | N36: =SUM(L36:M36) -> 2642520 | O36: =N36+K36 -> 37358913
A37: 21 | B37: 829444 | C37: 981004 | D37: 1810448 | E37: 2321 | F37: 889 | G37: 3210 | H37: 1813658 | I37: 11286665 | J37: 23500167 | K37: 34786832 | L37: 2477968 | M37: 1053313 | N37: 3531281 | O37: 38318113
A38: 22 | B38: 1001742 | C38: 1123988 | D38: 2125730 | E38: 2358 | F38: 1451 | G38: 3809 | H38: 2129539 | I38: 10769791 | J38: 24601253 | K38: 35371044 | L38: 2279307 | M38: 673938 | N38: 2953245 | O38: 38324289
A39: 23 | B39: 860038 | C39: 1038847 | D39: 1898885 | E39: 3021 | F39: 3248 | G39: 6269 | H39: 1905154 | I39: 10341365 | J39: 27001887 | K39: 37343252 | L39: 2270635 | M39: 583169 | N39: 2853804 | O39: 40197056
A40: 24 | B40: 868618 | C40: 1083589 | D40: 1952207 | E40: 5200 | F40: 7007 | G40: 12207 | H40: 1964414 | I40: 10743403 | J40: 28317676 | K40: 39061079 | L40: 2229091 | M40: 467612 | N40: 2696703 | O40: 41757782
A41: 25 | B41: 861788 | C41: 1078840 | D41: 1940628 | E41: 19319 | F41: 19978 | G41: 39297 | H41: 1979925 | I41: 12255390 | J41: 24236246 | K41: 36491636 | L41: 2450355 | M41: 977336 | N41: 3427691 | O41: 39919327
A42: 26 | B42: 938797 | C42: 1104602 | D42: 2043399 | E42: 29729 | F42: 25899 | G42: 55628 | H42: 2099027 | I42: 12662778 | J42: 19121676 | K42: 31784454 | L42: 3118639 | M42: 1065743 | N42: 4184382 | O42: 35968836
A43: 27 | B43: 960847 | C43: 1075121 | D43: 2035968 | E43: 28004 | F43: 21304 | G43: 49308 | H43: 2085276 | I43: 18194929 | J43: 15613719 | K43: 33808648 | L43: 2931276 | M43: 301658 | N43: 3232934 | O43: 37041582
A44: 28 | B44: 985088 | C44: 1098132 | D44: =SUM(B44:C44) -> 2083220 | E44: 27621 | F44: 20007 | G44: =SUM(E44:F44) -> 47628 | H44: =G44+D44 -> 2130848 | I44: 14507815 | J44: 16915327 | K44: =SUM(I44:J44) -> 31423142 | L44: 3008683 | M44: 148495 | N44: =SUM(L44:M44) -> 3157178 | O44: =N44+K44 -> 34580320
A45: 29 | B45: 1093196 | C45: 1169703 | D45: =SUM(B45:C45) -> 2262899 | E45: 19633 | F45: 17005 | G45: =SUM(E45:F45) -> 36638 | H45: =G45+D45 -> 2299537 | I45: 14407942 | J45: 20700767 | K45: =SUM(I45:J45) -> 35108709 | L45: 1627540 | M45: 155942 | N45: 1783482 | O45: =N45+K45 -> 36892191
A48: 20 | B48: 883775 | C48: 997161 | D48: =SUM(B48:C48) -> 1880936 | E48: 1932 | F48: 2132 | G48: =SUM(E48:F48) -> 4064 | H48: =G48+D48 -> 1885000 | I48: 12078065 | J48: 22552912 | K48: =SUM(I48:J48) -> 34630977 | L48: 1943843 | M48: 944838 | N48: =SUM(L48:M48) -> 2888681 | O48: =N48+K48 -> 37519658
A49: 21 | B49: 919394 | C49: 1043206 | D49: 1962600 | E49: 2450 | F49: 822 | G49: 3272 | H49: 1965872 | I49: 11212503 | J49: 23612730 | K49: 34825233 | L49: 2732494 | M49: 964210 | N49: 3696704 | O49: 38521937
A50: 22 | B50: 972154 | C50: 1096228 | D50: 2068382 | E50: 2679 | F50: 1954 | G50: 4633 | H50: 2073015 | I50: 10566253 | J50: 25014213 | K50: 35580466 | L50: 2036791 | M50: 639261 | N50: 2676052 | O50: 38256518
A51: 23 | B51: 869140 | C51: 1060256 | D51: 1929396 | E51: 2879 | F51: 3738 | G51: 6617 | H51: 1936013 | I51: 10465478 | J51: 27671004 | K51: 38136482 | L51: 2283238 | M51: 503717 | N51: 2786955 | O51: 40923437
A52: 24 | B52: 846154 | C52: 1074927 | D52: 1921081 | E52: 7622 | F52: 9579 | G52: 17201 | H52: 1938282 | I52: 11076052 | J52: 28048745 | K52: 39124797 | L52: 2254138 | M52: 519023 | N52: 2773161 | O52: 41897958
A53: 25 | B53: 882381 | C53: 1103256 | D53: 1985637 | E53: 22459 | F53: 22056 | G53: 44515 | H53: 2030152 | I53: 12718003 | J53: 22918515 | K53: 35636518 | L53: 2771889 | M53: 1029754 | N53: 3801643 | O53: 39438161
A54: 26 | B54: 979827 | C54: 1096460 | D54: 2076287 | E54: 30377 | F54: 25181 | G54: 55558 | H54: 2131845 | I54: 13415241 | J54: 17782412 | K54: 31197653 | L54: 2894932 | M54: 941977 | N54: 3836909 | O54: 35034562
A55: 27 | B55: 924200 | C55: 1057190 | D55: 1981390 | E55: 28184 | F55: 20775 | G55: 48959 | H55: 2030349 | I55: 18278991 | J55: 15472112 | K55: 33751103 | L55: 3029371 | M55: 227614 | N55: 3256985 | O55: 37008088
A56: 28 | B56: 1016815 | C56: 1123260 | D56: =SUM(B56:C56) -> 2140075 | E56: 26444 | F56: 20347 | G56: =SUM(E56:F56) -> 46791 | H56: =G56+D56 -> 2186866 | I56: 13619328 | J56: 17728806 | K56: =SUM(I56:J56) -> 31348134 | L56: 2781948 | M56: 149718 | N56: 2931666 | O56: =N56+K56 -> 34279800
A57: 29 | B57: 1111861 | C57: 1170236 | D57: =SUM(B57:C57) -> 2282097 | E57: 16569 | F57: 15085 | G57: =SUM(E57:F57) -> 31654 | H57: =G57+D57 -> 2313751 | I57: 15188367 | J57: 20971366 | K57: =SUM(I57:J57) -> 36159733 | L57: 1467637 | M57: 161906 | N57: =SUM(L57:M57) -> 1629543 | O57: =N57+K57 -> 37789276
A59: 暦 年 ・ 年 度 別 空 港 管 理 状 況 調 書
A60: 空港名 ： | B60: 中部国際 （会社管理）
A61: 項目 | C61: 着 陸 回 数 （回） | E61: 乗 降 客 数 （人） | M61: 航空燃料供給量 （ＫＬ）
B62: 国際線 | C62: 国内線 | D62: 計 | F62: 国 際 線 | J62: 国 内 線 | L62: 合 計 | M62: ジェット燃料 | N62: その他燃料 | O62: 合計
A63: 年別 | E63: 乗 客 | F63: 降 客 | G63: 通過客 | H63: 小 計 | I63: 乗 客 | J63: 降 客 | K63: 小 計
A65: 20 | B65: 19032 | C65: 30184 | D65: =SUM(B65:C65) -> 49216 | E65: 2340063 | F65: 2374469 | G65: 240640 | H65: =SUM(E65:G65) -> 4955172 | I65: 3011730 | J65: 3027847 | K65: =SUM(I65:J65) -> 6039577 | L65: =H65+K65 -> 10994749 | M65: 714057 | N65: 0 | O65: =SUM(M65:N65) -> 714057
A66: 21 | B66: 15902 | C66: 28029 | D66: 43931 | E66: 1990842 | F66: 1996284 | G66: 165100 | H66: 4152226 | I66: 2511653 | J66: 2514912 | K66: 5026565 | L66: 9178791 | M66: 571603 | N66: 0 | O66: 571603
A67: 22 | B67: 15384 | C67: 26958 | D67: 42342 | E67: 2119416 | F67: 2133273 | G67: 150200 | H67: 4402889 | I67: 2427640 | J67: 2440853 | K67: 4868493 | L67: 9271382 | M67: 511575 | N67: 0 | O67: 511575
A68: 23 | B68: 14768 | C68: 25872 | D68: 40640 | E68: 2026692 | F68: 2026554 | G68: 139100 | H68: 4192346 | I68: 2216189 | J68: 2227573 | K68: 4443762 | L68: 8636108 | M68: 479292 | N68: 0 | O68: 479292
A69: 24 | B69: 15510 | C69: 26423 | D69: 41933 | E69: 2112423 | F69: 2137671 | G69: 145200 | H69: 4395294 | I69: 2350889 | J69: 2355817 | K69: 4706706 | L69: 9102000 | M69: 490117 | N69: 0 | O69: 490117
A70: 25 | B70: 15657 | C70: 28632 | D70: 44289 | E70: 2057410 | F70: 2102274 | G70: 149300 | H70: 4308984 | I70: 2627033 | J70: 2616850 | K70: 5243883 | L70: 9552867 | M70: 527144 | N70: 0 | O70: 527144
A71: 26 | B71: 16428 | C71: 29169 | D71: 45597 | E71: 2086198 | F71: 2140865 | G71: 129091 | H71: 4356154 | I71: 2699179 | J71: 2700198 | K71: 5399377 | L71: 9755531 | M71: 574993 | N71: 0 | O71: 574993
A72: 27 | B72: 17918 | C72: 29790 | D72: 47708 | E72: 2303803 | F72: 2370594 | G72: 12879 | H72: 4687276 | I72: 2739521 | J72: 2750916 | K72: 5490437 | L72: 10177713 | M72: 541422 | N72: 0 | O72: 541422
A73: 28 | B73: 19584 | C73: 31275 | D73: 50859 | E73: 2541508 | F73: 2627908 | G73: 15269 | H73: 5184685 | I73: 2815888 | J73: 2842549 | K73: 5658437 | L73: 10843122 | M73: 549440 | N73: 0 | O73: 549440
A74: 29 | B74: 19496 | C74: 31150 | D74: 50646 | E74: 2702285 | F74: 2789412 | G74: 18004 | H74: 5509701 | I74: 2958591 | J74: 2977952 | K74: 5936543 | L74: 11446244 | M74: 560665 | N74: 0 | O74: 560665
A77: 20 | B77: 18344 | C77: 29932 | D77: =SUM(B77:C77) -> 48276 | E77: 2255470 | F77: 2272960 | G77: 223700 | H77: =SUM(E77:G77) -> 4752130 | I77: 2915665 | J77: 2917252 | K77: =SUM(I77:J77) -> 5832917 | L77: =H77+K77 -> 10585047 | M77: 678997 | N77: 0 | O77: =SUM(M77:N77) -> 678997
A78: 21 | B78: 15421 | C78: 27795 | D78: 43216 | E78: 1990616 | F78: 1994259 | G78: 159200 | H78: 4144075 | I78: 2472705 | J78: 2483194 | K78: 4955899 | L78: 9099974 | M78: 549323 | N78: 0 | O78: 549323
A79: 22 | B79: 15473 | C79: 26242 | D79: 41715 | E79: 2110314 | F79: 2108818 | G79: 147500 | H79: 4366632 | I79: 2343877 | J79: 2352661 | K79: 4696538 | L79: 9063170 | M79: 502617 | N79: 0 | O79: 502617
A80: 23 | B80: 14752 | C80: 26316 | D80: 41068 | E80: 2038907 | F80: 2060917 | G80: 137500 | H80: 4237324 | I80: 2252205 | J80: 2263702 | K80: 4515907 | L80: 8753231 | M80: 484663 | N80: 0 | O80: 484663
A81: 24 | B81: 15406 | C81: 26257 | D81: 41663 | E81: 2079378 | F81: 2116839 | G81: 147000 | H81: 4343217 | I81: 2359998 | J81: 2360307 | K81: 4720305 | L81: 9063522 | M81: 483444 | N81: 0 | O81: 483444
A82: 25 | B82: 15949 | C82: 29256 | D82: 45205 | E82: 2056641 | F82: 2102073 | G82: 154200 | H82: 4312914 | I82: 2703319 | J82: 2700321 | K82: 5403640 | L82: 9716554 | M82: 547088 | N82: 0 | O82: 547088
A83: 26 | B83: 16781 | C83: 29331 | D83: 46112 | E83: 2132872 | F83: 2191132 | G83: 89527 | H83: 4413531 | I83: 2699580 | J83: 2699716 | K83: 5399296 | L83: 9812827 | M83: 574277 | N83: 0 | O83: 574277
A84: 27 | B84: 18590 | C84: 30293 | D84: 48883 | E84: 2398395 | F84: 2474573 | G84: 13531 | H84: 4886499 | I84: 2754852 | J84: 2769555 | K84: 5524407 | L84: 10410906 | M84: 542435 | N84: 0 | O84: 542435
A85: 28 | B85: 19438 | C85: 31263 | D85: =SUM(B85:C85) -> 50701 | E85: 2557750 | F85: 2641605 | G85: 17474 | H85: =SUM(E85:G85) -> 5216829 | I85: 2855231 | J85: 2872823 | K85: =SUM(I85:J85) -> 5728054 | L85: =H85+K85 -> 10944883 | M85: 550741 | N85: 0 | O85: =SUM(M85:N85) -> 550741
A86: 29 | B86: 19353 | C86: 31133 | D86: 50486 | E86: 2723157 | F86: 2808444 | G86: 16257 | H86: 5547858 | I86: 2975034 | J86: 3000265 | K86: 5975299 | L86: 11523157 | M86: 555998 | N86: 0 | O86: 555998
A90: 項目 | E90: 貨 物 取 扱 量 （トン） | L90: 郵 便 取 扱 量 （Ｋｇ）
C91: 国 際 線 | F91: 国 内 線 | H91: 合計 | J91: 国 際 線 | M91: 国 内 線 | O91: 合 計
A92: 年別 | B92: 積 | C92: 卸 | D92: 小 計 | E92: 積 | F92: 卸 | G92: 小 計 | I92: 積 | J92: 卸 | K92: 小 計 | L92: 積 | M92: 卸 | N92: 小 計
A94: 20 | B94: 78261 | C94: 67096 | D94: =SUM(B94:C94) -> 145357 | E94: 22823 | F94: 17230 | G94: =SUM(E94:F94) -> 40053 | H94: =G94+D94 -> 185410 | I94: 4018315 | J94: 1667261 | K94: =SUM(I94:J94) -> 5685576 | L94: 1125858 | M94: 2016658 | N94: =SUM(L94:M94) -> 3142516 | O94: =N94+K94 -> 8828092
A95: 21 | B95: 51637 | C95: 56879 | D95: 108516 | E95: 20163 | F95: 15516 | G95: 35679 | H95: 144195 | I95: 3407316 | J95: 1857249 | K95: 5264565 | L95: 820812 | M95: 830800 | N95: 1651612 | O95: 6916177
A96: 22 | B96: 59336 | C96: 64249 | D96: 123585 | E96: 17321 | F96: 14323 | G96: 31644 | H96: 155229 | I96: 3016497 | J96: 2007799 | K96: 5024296 | L96: 721371 | M96: 765512 | N96: 1486883 | O96: 6511179
A97: 23 | B97: 55205 | C97: 58219 | D97: 113424 | E97: 15703 | F97: 12461 | G97: 28164 | H97: 141588 | I97: 2211671 | J97: 2275997 | K97: 4487668 | L97: 1319275 | M97: 815225 | N97: 2134500 | O97: 6622168
A98: 24 | B98: 51957 | C98: 63107 | D98: 115064 | E98: 14925 | F98: 12171 | G98: 27096 | H98: 142160 | I98: 2168281 | J98: 2384944 | K98: 4553225 | L98: 1297233 | M98: 799367 | N98: 2096600 | O98: 6649825
A99: 25 | B99: 59080 | C99: 73199 | D99: 132279 | E99: 15675 | F99: 14096 | G99: 29771 | H99: 162050 | I99: 2406616 | J99: 2141468 | K99: 4548084 | L99: 1529310 | M99: 865393 | N99: 2394703 | O99: 6942787
A100: 26 | B100: 82560 | C100: 83162 | D100: 165722 | E100: 16384 | F100: 14228 | G100: 30612 | H100: 196334 | I100: 3254400 | J100: 1954636 | K100: 5209036 | L100: 1773153 | M100: 945171 | N100: 2718324 | O100: 7927360
A101: 27 | B101: 92913 | C101: 79610 | D101: 172523 | E101: 14372 | F101: 12245 | G101: 26617 | H101: 199140 | I101: 5175362 | J101: 1482902 | K101: 6658264 | L101: 1310981 | M101: 1000283 | N101: 2311264 | O101: 8969528
A102: 28 | B102: 85395 | C102: 78046 | D102: 163441 | E102: 13156 | F102: 10397 | G102: 23553 | H102: 186994 | I102: 4199455 | J102: 1625098 | K102: 5824553 | L102: 1250078 | M102: 1014101 | N102: 2264179 | O102: 8088732
A103: 29 | B103: 94454 | C103: 82156 | D103: 176610 | E103: 13477 | F103: 10426 | G103: 23903 | H103: 200513 | I103: 4095391 | J103: 1621838 | K103: 5717229 | L103: 1270254 | M103: 956112 | N103: 2226366 | O103: 7943595
A106: 20 | B106: 64719 | C106: 58934 | D106: =SUM(B106:C106) -> 123653 | E106: 21909 | F106: 17363 | G106: =SUM(E106:F106) -> 39272 | H106: =G106+D106 -> 162925 | I106: 3738498 | J106: 1719576 | K106: =SUM(I106:J106) -> 5458074 | L106: 943733 | M106: 980081 | N106: =SUM(L106:M106) -> 1923814 | O106: =N106+K106 -> 7381888
A107: 21 | B107: 57720 | C107: 61301 | D107: 119021 | E107: 19577 | F107: 15030 | G107: 34607 | H107: 153628 | I107: 3409695 | J107: 1868569 | K107: 5278264 | L107: 780011 | M107: 822606 | N107: 1602617 | O107: 6880881
A108: 22 | B108: 57177 | C108: 62453 | D108: 119630 | E108: 17526 | F108: 14222 | G108: 31748 | H108: 151378 | I108: 2763882 | J108: 2040613 | K108: 4804495 | L108: 868168 | M108: 770963 | N108: 1639131 | O108: 6443626
A109: 23 | B109: 56102 | C109: 59899 | D109: 116001 | E109: 14834 | F109: 12301 | G109: 27135 | H109: 143136 | I109: 2183527 | J109: 2341662 | K109: 4525189 | L109: 1334535 | M109: 837449 | N109: 2171984 | O109: 6697173
A110: 24 | B110: 48708 | C110: 62374 | D110: 111082 | E110: 14985 | F110: 12092 | G110: 27077 | H110: 138159 | I110: 2181355 | J110: 2367623 | K110: 4548978 | L110: 1353315 | M110: 791889 | N110: 2145204 | O110: 6694182
A111: 25 | B111: 67131 | C111: 79792 | D111: 146923 | E111: 16315 | F111: 14748 | G111: 31063 | H111: 177986 | I111: 2531161 | J111: 2081449 | K111: 4612610 | L111: 1545708 | M111: 879163 | N111: 2424871 | O111: 7037481
A112: 26 | B112: 93682 | C112: 82460 | D112: 176142 | E112: 15885 | F112: 13581 | G112: 29466 | H112: 205608 | I112: 3755258 | J112: 1840244 | K112: 5595502 | L112: 1728814 | M112: 955433 | N112: 2684247 | O112: 8279749
A113: 27 | B113: 83703 | C113: 77352 | D113: 161055 | E113: 14022 | F113: 11716 | G113: 25738 | H113: 186793 | I113: 5188688 | J113: 1445465 | K113: 6634153 | L113: 1256242 | M113: 1018526 | N113: 2274768 | O113: 8908921
A114: 28 | B114: 85913 | C114: 79702 | D114: 165615 | E114: 13215 | F114: 10373 | G114: 23588 | H114: 189203 | I114: 4003466 | J114: 1678958 | K114: 5682424 | L114: 1257059 | M114: 1011711 | N114: 2268770 | O114: 7951194
A115: 29 | B115: 97906 | C115: 82076 | D115: 179982 | E115: 13146 | F115: 10189 | G115: 23335 | H115: 203317 | I115: 4131917 | J115: 1606642 | K115: 5738559 | L115: 1228585 | M115: 924819 | N115: 2153404 | O115: 7891963
A117: 暦 年 ・ 年 度 別 空 港 管 理 状 況 調 書
A118: 空港名 ： | B118: 関西国際 （会社管理）
A119: 項目 | C119: 着 陸 回 数 （回） | E119: 乗 降 客 数 （人） | M119: 航空燃料供給量 （ＫＬ）
B120: 国際線 | C120: 国内線 | D120: 計 | F120: 国 際 線 | J120: 国 内 線 | L120: 合 計 | M120: ジェット燃料 | N120: その他燃料 | O120: 合計
A121: 年別 | E121: 乗 客 | F121: 降 客 | G121: 通過客 | H121: 小 計 | I121: 乗 客 | J121: 降 客 | K121: 小 計
A123: 20 | B123: 40448 | C123: 26301 | D123: =SUM(B123:C123) -> 66749 | E123: 4923510 | F123: 5013426 | G123: 254705 | H123: =SUM(E123:G123) -> 10191641 | I123: 2770139 | J123: 2793811 | K123: =SUM(I123:J123) -> 5563950 | L123: =H123+K123 -> 15755591 | M123: 1534283 | N123: 0 | O123: =SUM(M123:N123) -> 1534283
A124: 21 | B124: 37133 | C124: 18820 | D124: 55953 | E124: 4530394 | F124: 4560579 | G124: 132741 | H124: 9223714 | I124: 2028918 | J124: 2066869 | K124: 4095787 | L124: 13319501 | M124: 1192186 | N124: 0 | O124: 1192186
A125: 22 | B125: 37571 | C125: 15785 | D125: 53356 | E125: 5101582 | F125: 5121593 | G125: 131529 | H125: 10354704 | I125: 1918800 | J125: 1946700 | K125: 3865500 | L125: 14220204 | M125: 1164490 | N125: 0 | O125: 1164490
A126: 23 | B126: 37887 | C126: 15111 | D126: 52998 | E126: 4768119 | F126: 4755896 | G126: 195974 | H126: 9719989 | I126: 1794583 | J126: 1814729 | K126: 3609312 | L126: 13329301 | M126: 1166480 | N126: 0 | O126: 1166480
A127: 24 | B127: 41933 | C127: 20084 | D127: 62017 | E127: 5415511 | F127: 5425898 | G127: 204174 | H127: 11045583 | I127: 2419819 | J127: 2440610 | K127: 4860429 | L127: 15906012 | M127: 1252209 | N127: 0 | O127: 1252209
A128: 25 | B128: 42462 | C128: 23503 | D128: 65965 | E128: 5740334 | F128: 5775154 | G128: 149318 | H128: 11664806 | I128: 2987517 | J128: 3008486 | K128: 5996003 | L128: 17660809 | M128: 1270671 | N128: 0 | O128: 1270671
A129: 26 | B129: 46604 | C129: 24183 | D129: 70787 | E129: 6344004 | F129: 6437406 | G129: 135796 | H129: 12917206 | I129: 3152366 | J129: 3148511 | K129: 6300877 | L129: 19218083 | M129: 1307748 | N129: 0 | O129: 1307748
A130: 27 | B130: 56087 | C130: 25666 | D130: 81753 | E130: 8017096 | F130: 8072760 | G130: 82070 | H130: 16171926 | I130: 3476164 | J130: 3488133 | K130: 6964297 | L130: 23136223 | M130: 1398263 | N130: 0 | O130: 1398263
A131: 28 | B131: 64628 | C131: 23925 | D131: 88553 | E131: 9246252 | F131: 9301962 | G131: 106149 | H131: 18654363 | I131: 3246698 | J131: 3229495 | K131: 6476193 | L131: 25130556 | M131: 1428927 | N131: 0 | O131: 1428927
A132: 29 | B132: 67735 | C132: 24853 | D132: 92588 | E132: 10445350 | F132: 10492682 | G132: 100148 | H132: 21038180 | I132: 3429696 | J132: 3418940 | K132: 6848636 | L132: 27886816 | M132: 1502278 | N132: 0 | O132: 1502278
A135: 20 | B135: 39701 | C135: 24932 | D135: =SUM(B135:C135) -> 64633 | E135: 4777162 | F135: 4868225 | G135: 232907 | H135: =SUM(E135:G135) -> 9878294 | I135: 2597571 | J135: 2621772 | K135: =SUM(I135:J135) -> 5219343 | L135: =H135+K135 -> 15097637 | M135: 1448700 | N135: 0 | O135: =SUM(M135:N135) -> 1448700
A136: 21 | B136: 36974 | C136: 17360 | D136: 54334 | E136: 4653980 | F136: 4665781 | G136: 125985 | H136: 9445746 | I136: 1953584 | J136: 1989897 | K136: 3943481 | L136: 13389227 | M136: 1159346 | N136: 0 | O136: 1159346
A137: 22 | B137: 38023 | C137: 15321 | D137: 53344 | E137: 5083711 | F137: 5039866 | G137: 142311 | H137: 10265888 | I137: 1872333 | J137: 1900325 | K137: 3772658 | L137: 14038546 | M137: 1175067 | N137: 0 | O137: 1175067
A138: 23 | B138: 38252 | C138: 15647 | D138: 53899 | E138: 4824920 | F138: 4869533 | G138: 207996 | H138: 9902449 | I138: 1864033 | J138: 1884702 | K138: 3748735 | L138: 13651184 | M138: 1181031 | N138: 0 | O138: 1181031
A139: 24 | B139: 42353 | C139: 22012 | D139: 64365 | E139: 5512625 | F139: 5549517 | G139: 183283 | H139: 11245425 | I139: 2673016 | J139: 2702174 | K139: 5375190 | L139: 16620615 | M139: 1255215 | N139: 0 | O139: 1255215
A140: 25 | B140: 43175 | C140: 23474 | D140: 66649 | E140: 5845618 | F140: 5902730 | G140: 151772 | H140: 11900120 | I140: 3032592 | J140: 3040837 | K140: 6073429 | L140: 17973549 | M140: 1274965 | N140: 0 | O140: 1274965
A141: 26 | B141: 47641 | C141: 24887 | D141: 72528 | E141: 6597730 | F141: 6692158 | G141: 116833 | H141: 13406721 | I141: 3261443 | J141: 3263556 | K141: 6524999 | L141: 19931720 | M141: 1320769 | N141: 0 | O141: 1320769
A142: 27 | B142: 59740 | C142: 24905 | D142: 84645 | E142: 8527474 | F142: 8573417 | G142: 87544 | H142: 17188435 | I142: 3389673 | J142: 3394411 | K142: 6784084 | L142: 23972519 | M142: 1417517 | N142: 0 | O142: 1417517
A143: 28 | B143: 64998 | C143: 24228 | D143: 89226 | E143: 9438658 | F143: 9497352 | G143: 107451 | H143: 19043461 | I143: 3294012 | J143: 3275770 | K143: 6569782 | L143: 25613243 | M143: 1444626 | N143: 0 | O143: 1444626
A144: 29 | B144: 69282 | C144: 24858 | D144: 94140 | E144: 10834280 | F144: 10877811 | G144: 96913 | H144: 21809004 | I144: 3456327 | J144: 3445118 | K144: 6901445 | L144: 28710449 | M144: 1518953 | N144: 0 | O144: 1518953
A148: 項目 | E148: 貨 物 取 扱 量 （トン） | L148: 郵 便 取 扱 量 （Ｋｇ）
C149: 国 際 線 | F149: 国 内 線 | H149: 合計 | J149: 国 際 線 | M149: 国 内 線 | O149: 合 計
A150: 年別 | B150: 積 | C150: 卸 | D150: 小 計 | E150: 積 | F150: 卸 | G150: 小 計 | I150: 積 | J150: 卸 | K150: 小 計 | L150: 積 | M150: 卸 | N150: 小 計
A152: 20 | B152: 378102 | C152: 375004 | D152: =SUM(B152:C152) -> 753106 | E152: 33362 | F152: 34291 | G152: =SUM(E152:F152) -> 67653 | H152: =G152+D152 -> 820759 | I152: 8274217 | J152: 9551212 | K152: =SUM(I152:J152) -> 17825429 | L152: 4126578 | M152: 3322536 | N152: =SUM(L152:M152) -> 7449114 | O152: =N152+K152 -> 25274543
A153: 21 | B153: 261746 | C153: 284354 | D153: 546100 | E153: 19821 | F153: 21621 | G153: 41442 | H153: 587542 | I153: 7662295 | J153: 10356844 | K153: 18019139 | L153: 2070051 | M153: 1244514 | N153: 3314565 | O153: 21333704
A154: 22 | B154: 329062 | C154: 372949 | D154: 702011 | E154: 17347 | F154: 19489 | G154: 36836 | H154: 738847 | I154: 7157703 | J154: 10592381 | K154: 17750084 | L154: 1836264 | M154: 844522 | N154: 2680786 | O154: 20430870
A155: 23 | B155: 316109 | C155: 368908 | D155: 685017 | E155: 18108 | F155: 18780 | G155: 36888 | H155: 721905 | I155: 6905941 | J155: 11003930 | K155: 17909871 | L155: 1948343 | M155: 944190 | N155: 2892533 | O155: 20802404
A156: 24 | B156: 307135 | C156: 358883 | D156: 666018 | E156: 13393 | F156: 17250 | G156: 30643 | H156: 696661 | I156: 6497228 | J156: 11652892 | K156: 18150120 | L156: 2473144 | M156: 990129 | N156: 3463273 | O156: 21613393
A157: 25 | B157: 285871 | C157: 350171 | D157: 636042 | E157: 11639 | F157: 11909 | G157: 23548 | H157: 659590 | I157: 8670743 | J157: 10626870 | K157: 19297613 | L157: 2374839 | M157: 1080258 | N157: 3455097 | O157: 22752710
A158: 26 | B158: 328454 | C158: 371871 | D158: 700325 | E158: 11185 | F158: 11223 | G158: 22408 | H158: 722733 | I158: 11479840 | J158: 8314592 | K158: 19794432 | L158: 2302678 | M158: 1069108 | N158: 3371786 | O158: 23166218
A159: 27 | B159: 333262 | C159: 364112 | D159: 697374 | E159: 10589 | F159: 11368 | G159: 21957 | H159: 719331 | I159: 15577655 | J159: 6977456 | K159: 22555111 | L159: 2582288 | M159: 1137813 | N159: 3720101 | O159: 26275212
A160: 28 | B160: 336679 | C160: 373132 | D160: 709811 | E160: 9416 | F160: 9858 | G160: 19274 | H160: 729085 | I160: 14175072 | J160: 8259508 | K160: 22434580 | L160: 2763764 | M160: 1092971 | N160: 3856735 | O160: 26291315
A161: 29 | B161: 383714 | C161: 430990 | D161: 814704 | E161: 9420 | F161: 10361 | G161: 19781 | H161: 834485 | I161: 16713194 | J161: 9559686 | K161: 26272880 | L161: 3419344 | M161: 1151007 | N161: 4570351 | O161: 30843231
A164: 20 | B164: 321662 | C164: 339314 | D164: =SUM(B164:C164) -> 660976 | E164: 31616 | F164: 33684 | G164: =SUM(E164:F164) -> 65300 | H164: =G164+D164 -> 726276 | I164: 8174744 | J164: 9617379 | K164: =SUM(I164:J164) -> 17792123 | L164: 3254403 | M164: 1897571 | N164: =SUM(L164:M164) -> 5151974 | O164: =N164+K164 -> 22944097
A165: 21 | B165: 290388 | C165: 304843 | D165: 595231 | E165: 18472 | F165: 20075 | G165: 38547 | H165: 633778 | I165: 7734023 | J165: 10504802 | K165: 18238825 | L165: 1843005 | M165: 1084522 | N165: 2927527 | O165: 21166352
A166: 22 | B166: 334456 | C166: 378013 | D166: 712469 | E166: 17979 | F166: 19392 | G166: 37371 | H166: 749840 | I166: 7231392 | J166: 10486336 | K166: 17717728 | L166: 1881322 | M166: 892266 | N166: 2773588 | O166: 20491316
A167: 23 | B167: 308601 | C167: 366777 | D167: 675378 | E167: 17389 | F167: 19081 | G167: 36470 | H167: 711848 | I167: 6625657 | J167: 11410636 | K167: 18036293 | L167: 2081900 | M167: 966063 | N167: 3047963 | O167: 21084256
A168: 24 | B168: 297408 | C168: 356726 | D168: 654134 | E168: 12671 | F168: 15747 | G168: 28418 | H168: 682552 | I168: 6745737 | J168: 11653775 | K168: 18399512 | L168: 2486749 | M168: 996010 | N168: 3482759 | O168: 21882271
A169: 25 | B169: 293033 | C169: 353722 | D169: 646755 | E169: 11732 | F169: 12144 | G169: 23876 | H169: 670631 | I169: 9307973 | J169: 9960364 | K169: 19268337 | L169: 2351660 | M169: 1122158 | N169: 3473818 | O169: 22742155
A170: 26 | B170: 345222 | C170: 374229 | D170: 719451 | E170: 10692 | F170: 10680 | G170: 21372 | H170: 740823 | I170: 12648233 | J170: 7805224 | K170: 20453457 | L170: 2319405 | M170: 1044530 | N170: 3363935 | O170: 23817392
A171: 27 | B171: 320072 | C171: 357107 | D171: 677179 | E171: 10866 | F171: 11727 | G171: 22593 | H171: 699772 | I171: 15509460 | J171: 6930974 | K171: 22440434 | L171: 2627946 | M171: 1144650 | N171: 3772596 | O171: 26213030
A172: 28 | B172: 347688 | C172: 387550 | D172: 735238 | E172: 8926 | F172: 9200 | G172: 18126 | H172: 753364 | I172: 14245597 | J172: 8719080 | K172: 22964677 | L172: 2924905 | M172: 1100158 | N172: 4025063 | O172: 26989740
A173: 29 | B173: 397228 | C173: 434466 | D173: 831694 | E173: 9485 | F173: 10380 | G173: 19865 | H173: 851559 | I173: 17510840 | J173: 9613286 | K173: 27124126 | L173: 3336438 | M173: 1160010 | N173: 4496448 | O173: 31620574
A175: 暦 年 ・ 年 度 別 空 港 管 理 状 況 調 書
A176: 空港名 ： | B176: 大阪国際 （会社管理） | M176: ※Ｈ２４年６月以前は国管理空港に計上
A177: 項目 | C177: 着 陸 回 数 （回） | E177: 乗 降 客 数 （人） | M177: 航空燃料供給量 （ＫＬ）
B178: 国際線 | C178: 国内線 | D178: 計 | F178: 国 際 線 | J178: 国 内 線 | L178: 合 計 | M178: ジェット燃料 | N178: その他燃料 | O178: 合計
A179: 年別 | E179: 乗 客 | F179: 降 客 | G179: 通過客 | H179: 小 計 | I179: 乗 客 | J179: 降 客 | K179: 小 計
A181: 20 | B181: 0 | C181: 0 | D181: =SUM(B181:C181) -> 0 | E181: 0 | F181: 0 | G181: 0 | H181: =SUM(E181:G181) -> 0 | I181: 0 | J181: 0 | K181: =SUM(I181:J181) -> 0 | L181: =H181+K181 -> 0 | M181: 0 | N181: 0 | O181: =SUM(M181:N181) -> 0
A182: 21 | B182: 0 | C182: 0 | D182: 0 | E182: 0 | F182: 0 | G182: 0 | H182: 0 | I182: 0 | J182: 0 | K182: 0 | L182: 0 | M182: 0 | N182: 0 | O182: 0
A183: 22 | B183: 0 | C183: 0 | D183: 0 | E183: 0 | F183: 0 | G183: 0 | H183: 0 | I183: 0 | J183: 0 | K183: 0 | L183: 0 | M183: 0 | N183: 0 | O183: 0
A184: 23 | B184: 0 | C184: 0 | D184: 0 | E184: 0 | F184: 0 | G184: 0 | H184: 0 | I184: 0 | J184: 0 | K184: 0 | L184: 0 | M184: 0 | N184: 0 | O184: 0
A185: 24 | B185: 0 | C185: 32584 | D185: 32584 | E185: 0 | F185: 0 | G185: 0 | H185: 0 | I185: 3488141 | J185: 3420830 | K185: 6908971 | L185: 6908971 | M185: 101602 | N185: 0 | O185: 101602
A186: 25 | B186: 5 | C186: 68061 | D186: 68066 | E186: 0 | F186: 0 | G186: 0 | H186: 0 | I186: 6963009 | J186: 6860913 | K186: 13823922 | L186: 13823922 | M186: 220426 | N186: 0 | O186: 220426
A187: 26 | B187: 3 | C187: 69539 | D187: 69542 | E187: 0 | F187: 0 | G187: 0 | H187: 0 | I187: 7308478 | J187: 7218097 | K187: 14526575 | L187: 14526575 | M187: 236375 | N187: 0 | O187: 236375
A188: 27 | B188: 7 | C188: 69718 | D188: 69725 | E188: 153 | F188: 149 | G188: 0 | H188: 302 | I188: 7307778 | J188: 7233856 | K188: 14541634 | L188: 14541936 | M188: 240699 | N188: 0 | O188: 240699
A189: 28 | B189: 5 | C189: 69591 | D189: 69596 | E189: 0 | F189: 0 | G189: 0 | H189: 0 | I189: 7504160 | J189: 7419518 | K189: 14923678 | L189: 14923678 | M189: 255571 | N189: 0 | O189: 255571
A190: 29 | B190: 2 | C190: 69226 | D190: 69228 | E190: 0 | F190: 0 | G190: 0 | H190: 0 | I190: 7845875 | J190: 7751902 | K190: 15597777 | L190: 15597777 | M190: 251774 | N190: 0 | O190: 251774
A193: 20 | B193: 0 | C193: 0 | D193: =SUM(B193:C193) -> 0 | E193: 0 | F193: 0 | G193: 0 | H193: =SUM(E193:G193) -> 0 | I193: 0 | J193: 0 | K193: =SUM(I193:J193) -> 0 | L193: =H193+K193 -> 0 | M193: 0 | N193: 0 | O193: =SUM(M193:N193) -> 0
A194: 21 | B194: 0 | C194: 0 | D194: 0 | E194: 0 | F194: 0 | G194: 0 | H194: 0 | I194: 0 | J194: 0 | K194: 0 | L194: 0 | M194: 0 | N194: 0 | O194: 0
A195: 22 | B195: 0 | C195: 0 | D195: 0 | E195: 0 | F195: 0 | G195: 0 | H195: 0 | I195: 0 | J195: 0 | K195: 0 | L195: 0 | M195: 0 | N195: 0 | O195: 0
A196: 23 | B196: 0 | C196: 0 | D196: 0 | E196: 0 | F196: 0 | G196: 0 | H196: 0 | I196: 0 | J196: 0 | K196: 0 | L196: 0 | M196: 0 | N196: 0 | O196: 0
A197: 24 | B197: 1 | C197: 48068 | D197: 48069 | E197: 0 | F197: 0 | G197: 0 | H197: 0 | I197: 5025551 | J197: 4939110 | K197: 9964661 | L197: 9964661 | M197: 149381 | N197: 0 | O197: 149381
A198: 25 | B198: 5 | C198: 69571 | D198: 69576 | E198: 0 | F198: 0 | G198: 0 | H198: 0 | I198: 7098831 | J198: 7002408 | K198: 14101239 | L198: 14101239 | M198: 228762 | N198: 0 | O198: 228762
A199: 26 | B199: 2 | C199: 69587 | D199: 69589 | E199: 0 | F199: 0 | G199: 0 | H199: 0 | I199: 7356879 | J199: 7264055 | K199: 14620934 | L199: 14620934 | M199: 238982 | N199: 0 | O199: 238982
A200: 27 | B200: 7 | C200: 69898 | D200: 69905 | E200: 153 | F200: 149 | G200: 0 | H200: 302 | I200: 7349245 | J200: 7277186 | K200: 14626431 | L200: 14626733 | M200: 242840 | N200: 0 | O200: 242840
A201: 28 | B201: 5 | C201: 69367 | D201: 69372 | E201: 0 | F201: 0 | G201: 0 | H201: 0 | I201: 7595601 | J201: 7504794 | K201: 15100395 | L201: 15100395 | M201: 257990 | N201: 0 | O201: 257990
A202: 29 | B202: 2 | C202: 69178 | D202: 69180 | E202: 0 | F202: 0 | G202: 0 | H202: 0 | I202: 7884239 | J202: 7793122 | K202: 15677361 | L202: 15677361 | M202: 253398 | N202: 0 | O202: 253398
M205: ※Ｈ２４年６月以前は国管理空港に計上
A206: 項目 | E206: 貨 物 取 扱 量 （トン） | L206: 郵 便 取 扱 量 （Ｋｇ）
C207: 国 際 線 | F207: 国 内 線 | H207: 合計 | J207: 国 際 線 | M207: 国 内 線 | O207: 合 計
A208: 年別 | B208: 積 | C208: 卸 | D208: 小 計 | E208: 積 | F208: 卸 | G208: 小 計 | I208: 積 | J208: 卸 | K208: 小 計 | L208: 積 | M208: 卸 | N208: 小 計
A210: 20 | B210: 0 | C210: 0 | D210: =SUM(B210:C210) -> 0 | E210: 0 | F210: 0 | G210: =SUM(E210:F210) -> 0 | H210: =G210+D210 -> 0 | I210: 0 | J210: 0 | K210: =SUM(I210:J210) -> 0 | L210: 0 | M210: 0 | N210: =SUM(L210:M210) -> 0 | O210: =N210+K210 -> 0
A211: 21 | B211: 0 | C211: 0 | D211: 0 | E211: 0 | F211: 0 | G211: 0 | H211: 0 | I211: 0 | J211: 0 | K211: 0 | L211: 0 | M211: 0 | N211: 0 | O211: 0
A212: 22 | B212: 0 | C212: 0 | D212: 0 | E212: 0 | F212: 0 | G212: 0 | H212: 0 | I212: 0 | J212: 0 | K212: 0 | L212: 0 | M212: 0 | N212: 0 | O212: 0
A213: 23 | B213: 0 | C213: 0 | D213: 0 | E213: 0 | F213: 0 | G213: 0 | H213: 0 | I213: 0 | J213: 0 | K213: 0 | L213: 0 | M213: 0 | N213: 0 | O213: 0
A214: 24 | B214: 0 | C214: 0 | D214: 0 | E214: 28458 | F214: 36854 | G214: 65312 | H214: 65312 | I214: 0 | J214: 0 | K214: 0 | L214: 1600841 | M214: 2271165 | N214: 3872006 | O214: 3872006
A215: 25 | B215: 0 | C215: 0 | D215: 0 | E215: 59789 | F215: 70223 | G215: 130012 | H215: 130012 | I215: 0 | J215: 0 | K215: 0 | L215: 3291168 | M215: 4520970 | N215: 7812138 | O215: 7812138
A216: 26 | B216: 0 | C216: 0 | D216: 0 | E216: 61219 | F216: 73428 | G216: 134647 | H216: 134647 | I216: 0 | J216: 0 | K216: 0 | L216: 4058435 | M216: 4595941 | N216: 8654376 | O216: 8654376
A217: 27 | B217: 0 | C217: 0 | D217: 0 | E217: 58293 | F217: 73078 | G217: 131371 | H217: 131371 | I217: 0 | J217: 0 | K217: 0 | L217: 4683792 | M217: 4633485 | N217: 9317277 | O217: 9317277
A218: 28 | B218: 0 | C218: 0 | D218: 0 | E218: 61288 | F218: 72674 | G218: 133962 | H218: 133962 | I218: 0 | J218: 0 | K218: 0 | L218: 4416622 | M218: 4456305 | N218: 8872927 | O218: 8872927
A219: 29 | B219: 0 | C219: 0 | D219: 0 | E219: 61168 | F219: 71715 | G219: 132883 | H219: 132883 | I219: 0 | J219: 0 | K219: 0 | L219: 4371524 | M219: 3987080 | N219: 8358604 | O219: 8358604
A222: 20 | B222: 0 | C222: 0 | D222: =SUM(B222:C222) -> 0 | E222: 0 | F222: 0 | G222: =SUM(E222:F222) -> 0 | H222: =G222+D222 -> 0 | I222: 0 | J222: 0 | K222: =SUM(I222:J222) -> 0 | L222: 0 | M222: 0 | N222: =SUM(L222:M222) -> 0 | O222: =N222+K222 -> 0
A223: 21 | B223: 0 | C223: 0 | D223: 0 | E223: 0 | F223: 0 | G223: 0 | H223: 0 | I223: 0 | J223: 0 | K223: 0 | L223: 0 | M223: 0 | N223: 0 | O223: 0
A224: 22 | B224: 0 | C224: 0 | D224: 0 | E224: 0 | F224: 0 | G224: 0 | H224: 0 | I224: 0 | J224: 0 | K224: 0 | L224: 0 | M224: 0 | N224: 0 | O224: 0
A225: 23 | B225: 0 | C225: 0 | D225: 0 | E225: 0 | F225: 0 | G225: 0 | H225: 0 | I225: 0 | J225: 0 | K225: 0 | L225: 0 | M225: 0 | N225: 0 | O225: 0
A226: 24 | B226: 0 | C226: 0 | D226: 0 | E226: 42237 | F226: 51171 | G226: 93408 | H226: 93408 | I226: 0 | J226: 0 | K226: 0 | L226: 2387305 | M226: 3366443 | N226: 5753748 | O226: 5753748
A227: 25 | B227: 0 | C227: 0 | D227: 0 | E227: 61756 | F227: 71507 | G227: 133263 | H227: 133263 | I227: 0 | J227: 0 | K227: 0 | L227: 3364943 | M227: 4562217 | N227: 7927160 | O227: 7927160
A228: 26 | B228: 0 | C228: 0 | D228: 0 | E228: 59725 | F228: 73629 | G228: 133354 | H228: 133354 | I228: 0 | J228: 0 | K228: 0 | L228: 4308515 | M228: 4577988 | N228: 8886503 | O228: 8886503
A229: 27 | B229: 0 | C229: 0 | D229: 0 | E229: 58667 | F229: 73085 | G229: 131752 | H229: 131752 | I229: 0 | J229: 0 | K229: 0 | L229: 4771175 | M229: 4705815 | N229: 9476990 | O229: 9476990
A230: 28 | B230: 0 | C230: 0 | D230: 0 | E230: 61851 | F230: 72499 | G230: 134350 | H230: 134350 | I230: 0 | J230: 0 | K230: 0 | L230: 4276518 | M230: 4278699 | N230: 8555217 | O230: 8555217
A231: 29 | B231: 0 | C231: 0 | D231: 0 | E231: 61366 | F231: 71412 | G231: 132778 | H231: 132778 | I231: 0 | J231: 0 | K231: 0 | L231: 4360629 | M231: 3835811 | N231: 8196440 | O231: 8196440
A233: 暦 年 ・ 年 度 別 空 港 管 理 状 況 調 書
A234: 空港名 ： | B234: 会社管理空港計
A235: 項目 | C235: 着 陸 回 数 （回） | E235: 乗 降 客 数 （人） | M235: 航空燃料供給量 （ＫＬ）
B236: 国際線 | C236: 国内線 | D236: 計 | F236: 国 際 線 | J236: 国 内 線 | L236: 合 計 | M236: ジェット燃料 | N236: その他燃料 | O236: 合計
A237: 年別 | E237: 乗 客 | F237: 降 客 | G237: 通過客 | H237: 小 計 | I237: 乗 客 | J237: 降 客 | K237: 小 計
A239: 20 | B239: =B7+B65+B123+B181 -> 149390 | C239: =C7+C65+C123+C181 -> 63796 | D239: =SUM(B239:C239) -> 213186 | E239: =E7+E65+E123+E181 -> 20485050 | F239: 20456124 | G239: 3493845 | H239: =SUM(E239:G239) -> 44435019 | I239: =I7+I65+I123+I181 -> 6353898 | J239: 6392550 | K239: =SUM(I239:J239) -> 12746448 | L239: =H239+K239 -> 57181467 | M239: =M7+M65+M123+M181 -> 7618993 | N239: 0 | O239: =SUM(M239:N239) -> 7618993
A240: 21 | B240: 139454 | C240: 54630 | D240: 194084 | E240: 18781591 | F240: 18714610 | G240: 3519546 | H240: 41015747 | I240: 5149728 | J240: 5213284 | K240: 10363012 | L240: 51378759 | M240: 6595994 | N240: 0 | O240: 6595994
... 6282 more rows
